fUST/lending_fUST_20251213
["ID","MTS","AMOUNT","RATE_DAILY","PERIOD"]
[398411496,1765618846041,-151.91815764,9.038e-05,2]
[398411497,1765618846064,-181.43182346,9.1e-05,2]
[398411499,1765618848225,-12.10817654,9.1e-05,2]
[398411500,1765618848246,-142.52512478,9.2e-05,2]
[398411502,1765618852325,-51.01487522,9.2e-05,2]
[398411503,1765618852347,-153.28504691,9.277e-05,2]
[398411505,1765618854453,-74.03751194,9.277e-05,2]
[398411506,1765618854475,-155.51048875,9.3e-05,2]
[398411507,1765618860244,-38.02951125,9.3e-05,2]
[398411508,1765618860266,-193.54,9.4e-05,2]
[398411509,1765618864363,198.6,7.018e-05,2]
[398411510,1765618864761,397.19,7.352e-05,2]
[398411511,1765618865159,595.79,7.687e-05,2]
[398411512,1765618865551,794.38,8.021e-05,2]
[398411513,1765618865979,992.98,8.355e-05,2]
[398411514,1765618868155,-440.18492111,8.689e-05,2]
[398411515,1765618869929,-315.99164845,8.689e-05,2]
[398411516,1765618873087,-158.71301525,8.689e-05,2]
[398411517,1765618875968,-160.5538696,8.689e-05,2]
[398411518,1765618878204,-116.12654559,8.689e-05,2]
[398411519,1765618878228,-73.43015452,9.023e-05,2]
[398411520,1765618879737,-155.67356659,8.8e-05,2]
[398411521,1765618881804,-10.76643341,8.8e-05,2]
[398411522,1765618881827,-166.44,8.9e-05,2]
[398411523,1765618881848,-166.44,9e-05,2]
[398411524,1765618881871,-54.09444682,9.023e-05,2]
[398411525,1765618886450,-186.29943104,9.023e-05,2]
[398411526,1765618892262,-269.8135386,9.023e-05,2]
[398411527,1765618894372,-230.1864614,9.023e-05,2]
[398411528,1765618896564,-278.61831722,9.023e-05,2]
[398411529,1765618899633,-227.35792701,9.023e-05,2]
[398411530,1765618903734,-70.36972339,9.023e-05,2]
[398411531,1765618903758,-166.44,9.1e-05,2]
[398411532,1765618903780,-14.85987396,9.2e-05,2]
[398411533,1765618905991,-151.58012604,9.2e-05,2]
[398411534,1765618906015,-166.44,9.3e-05,2]
[398411535,1765618906041,-45.09216078,9.358e-05,2]
[398411536,1765618908219,-259.94424131,9.358e-05,2]
[398411537,1765618909747,-164.04125098,9.358e-05,2]
[398411538,1765618911284,-277.91015139,9.358e-05,2]
[398411539,1765618918394,-394.90389542,9.358e-05,2]
[398411540,1765618919930,-186.32616998,9.358e-05,2]
[398411541,1765618923971,-188.22567193,9.358e-05,2]
[398411543,1765618945510,-150.0,8.718e-05,2]
[398411544,1765618945536,-107.60747974,8.8e-05,2]
[398411545,1765618948162,-44.96252026,8.8e-05,2]
[398411546,1765618948186,-152.57,8.9e-05,2]
[398411547,1765618948209,-107.29815993,9e-05,2]
[398411548,1765618950847,-45.27184007,9e-05,2]
[398411549,1765618950870,-152.57,9.1e-05,2]
[398411550,1765618950895,-178.26321512,9.133e-05,2]
[398411551,1765618953618,-38.78678488,9.133e-05,2]
[398411552,1765618953642,-152.57,9.2e-05,2]
[398411553,1765618953666,-12.88341297,9.4e-05,2]
[398411554,1765619005559,-152.27,8.8e-05,2]
[398411555,1765619005580,-23.09255337,8.9e-05,2]
[398411556,1765619008279,-129.17744663,8.9e-05,2]
[398411557,1765619008307,-24.92041254,9e-05,2]
[398411558,1765619020414,150.0,6.686e-05,2]
[398411559,1765619020793,207.7,7.004e-05,2]
[398411560,1765619021289,311.55,7.323e-05,2]
[398411561,1765619021709,415.4,7.641e-05,2]
[398411562,1765619022937,519.26,7.959e-05,2]
[398411563,1765619023367,623.11,8.278e-05,2]
[398411565,1765619035524,-291.5781893,8.596e-05,2]
[398411566,1765619038935,-328.66932264,8.596e-05,2]
[398411567,1765619041029,-106.71248806,8.596e-05,2]
[398411568,1765619041052,-204.99186879,8.915e-05,2]
[398411569,1765619043491,-338.57873822,8.915e-05,2]
[398411572,1765619067859,-151.66,8.8e-05,2]
[398411574,1765619067882,-151.66,8.9e-05,2]
[398411576,1765619067909,-74.80062154,8.915e-05,2]
[398411579,1765619099593,150.0,6.682e-05,2]
[398411580,1765619100000,15.78,7e-05,2]
[398411581,1765619100026,134.22,7e-05,2]
[398411582,1765619100420,175.15,7.319e-05,2]
[398411583,1765619101093,233.54,7.637e-05,2]
[398411584,1765619101508,291.92,7.955e-05,2]
[398411585,1765619101901,350.31,8.273e-05,2]
[398411586,1765619111068,-373.65647307,8.591e-05,2]
[398411587,1765619116018,-35.03352693,8.591e-05,2]
[398411588,1765619116043,-116.04647307,8.91e-05,2]
[398411590,1765619175376,150.0,7.279e-05,2]
[398411591,1765619175784,150.0,7.626e-05,2]
[398411592,1765619176184,150.0,7.972e-05,2]
[398411593,1765619176609,150.0,8.319e-05,2]
[398411602,1765619247795,150.0,6.681e-05,2]
[398411603,1765619248196,150.0,6.999e-05,2]
[398411604,1765619248590,150.0,7.317e-05,2]
[398411605,1765619248993,150.0,7.635e-05,2]
[398411606,1765619249386,150.0,7.954e-05,2]
[398411607,1765619249867,161.26,8.272e-05,2]
[398411608,1765619318513,150.0,6.725e-05,2]
[398411609,1765619318926,150.0,7.045e-05,2]
[398411610,1765619319347,150.0,7.365e-05,2]
[398411611,1765619319920,150.0,7.685e-05,2]
[398411612,1765619320385,150.0,8.005e-05,2]
[398411613,1765619320768,150.0,8.326e-05,2]
[398411614,1765619356124,-150.0,8.646e-05,2]
[398411615,1765619356147,-150.0,8.966e-05,2]
[398411616,1765619356167,-111.6,9.008e-05,2]
[398411618,1765619360124,-151.66,8.8e-05,2]
[398411619,1765619360146,-151.66,8.9e-05,2]
[398411620,1765619360166,-38.4,9.008e-05,2]
[398411621,1765619360186,-151.66,9.1e-05,2]
[398411622,1765619360206,-151.66,9.2e-05,2]
[398411623,1765619360227,-151.66,9.3e-05,2]
[398411624,1765619360248,-151.66,9.5e-05,2]
[398411625,1765619360272,-151.66,9.6e-05,2]
[398411626,1765619360292,-151.66,9.8e-05,2]
[398411627,1765619360313,-94.78134626,9.9e-05,2]
[398411659,1765619432079,-153.56,8.8e-05,2]
[398411661,1765619432089,-153.56,9e-05,2]
[398411663,1765619432098,-153.56,9.2e-05,2]
[398411665,1765619432108,-48.11466062,9.3e-05,2]
[398411668,1765619438052,-105.44533938,9.3e-05,2]
[398411669,1765619438062,-153.56,9.5e-05,2]
[398411670,1765619438071,-153.56,9.7e-05,2]
[398411671,1765619438080,-559.0,9.9e-05,2]
[398411672,1765619438090,-153.56,9.9e-05,2]
[398411673,1765619438100,-150.0,9.95e-05,2]
[398411674,1765619438110,-153.56,0.000101,2]
[398411675,1765619438120,-153.56,0.000102,2]
[398411676,1765619438129,-153.56,0.000104,2]
[398411677,1765619438139,-153.56,0.000106,2]
[398411678,1765619438149,-153.56,0.000108,2]
[398411679,1765619438159,-215.28503664,0.0001097,2]
[398411680,1765619438170,-153.56,0.00011,2]
[398411681,1765619438180,-283.0,0.000111,2]
[398411682,1765619438191,-153.56,0.000111,2]
[398411683,1765619438201,-153.56,0.000113,2]
[398411684,1765619438211,-175.46285797,0.00011456,2]
[398411685,1765619438222,-285.37040312,0.00011456,2]
[398411686,1765619438231,-153.56,0.000115,2]
[398411687,1765619438242,-300.0,0.00011579,2]
[398411688,1765619438252,-1200.0,0.00011579,2]
[398411689,1765619438262,-1881.8095124,0.0001158,2]
[398411690,1765619438272,-153.56,0.000117,2]
[398411691,1765619438282,-153.56,0.000118,2]
[398411692,1765619438292,-177.0,0.0001195,2]
[398411693,1765619438302,-296.5912763,0.00011957,2]
[398411694,1765619438311,-153.56,0.00012,2]
[398411695,1765619438321,-191.7839579,0.00012182,2]
[398411696,1765619438331,-153.56,0.000122,2]
[398411697,1765619438341,-153.56,0.000124,2]
[398411698,1765619438350,-153.56,0.000126,2]
[398411699,1765619438360,-153.56,0.000127,2]
[398411700,1765619438370,-153.56,0.000129,2]
[398411701,1765619438380,-153.56,0.000131,2]
[398411702,1765619438391,-175.63832083,0.00013136,2]
[398411703,1765619438402,-500.0,0.00013263,2]
[398411704,1765619438412,-500.0,0.00013273,2]
[398411705,1765619438422,-153.56,0.000133,2]
[398411706,1765619438432,-153.56,0.000135,2]
[398411707,1765619438441,-153.56,0.000136,2]
[398411708,1765619438451,-586.581516,0.00013699,2]
[398411709,1765619438461,-153.56,0.000138,2]
[398411710,1765619438473,-1000.0,0.00013821,2]
[398411711,1765619438483,-213.02093506,0.0001389,2]
[398411712,1765619438493,-227.54988141,0.0001389,2]
[398411713,1765619438503,-186.04044774,0.000139,2]
[398411714,1765619438513,-357.35741652,0.00013999,2]
[398411715,1765619438524,-500.0,0.00013999,2]
[398411716,1765619438533,-500.0,0.00013999,2]
[398411717,1765619438545,-500.0,0.00013999,2]
[398411718,1765619438561,-500.0,0.00013999,2]
[398411719,1765619438572,-500.0,0.00013999,2]
[398411720,1765619438583,-500.0,0.00013999,2]
[398411721,1765619438594,-500.0,0.00013999,2]
[398411722,1765619438604,-406.51765927,0.00013999,2]
[398411723,1765619438615,-500.0,0.00013999,2]
[398411724,1765619438627,-500.0,0.00013999,2]
[398411725,1765619438637,-500.0,0.00013999,2]
[398411726,1765619438650,-500.0,0.00013999,2]
[398411727,1765619438661,-500.0,0.00013999,2]
[398411728,1765619438671,-500.0,0.00013999,2]
[398411729,1765619438682,-500.0,0.00013999,2]
[398411730,1765619438692,-500.0,0.00013999,2]
[398411731,1765619438702,-500.0,0.00013999,2]
[398411732,1765619438712,-500.0,0.00013999,2]
[398411733,1765619438723,-500.0,0.00013999,2]
[398411734,1765619438734,-500.0,0.00013999,2]
[398411735,1765619438744,-500.0,0.00013999,2]
[398411736,1765619438754,-500.0,0.00013999,2]
[398411737,1765619438764,-500.0,0.00013999,2]
[398411738,1765619438774,-500.0,0.00013999,2]
[398411739,1765619438784,-446.48114513,0.00013999,2]
[398411740,1765619438794,-500.0,0.00013999,2]
[398411741,1765619438804,-500.0,0.00013999,2]
[398411742,1765619438815,-500.0,0.00013999,2]
[398411743,1765619438825,-500.0,0.00013999,2]
[398411744,1765619438835,-37342.36586274,0.00014,2]
[398411745,1765619438845,-153.56,0.00014,2]
[398411746,1765619438855,-1500.0,0.00014368,2]
[398411747,1765619438865,-185.00607439,0.00014696,2]
[398411748,1765619438876,-219.19491476,0.00014696,2]
[398411749,1765619438886,-2000.0,0.00014916,2]
[398411750,1765619438896,-373.04161347,0.00015007,2]
[398411751,1765619438906,-500.0,0.0001531,2]
[398411752,1765619438916,-500.0,0.00015456,2]
[398411753,1765619438926,-487.23198141,0.00015464,2]
[398411754,1765619438937,-215.28503664,0.00015611,2]
[398411755,1765619438947,-186.04044774,0.00017321,2]
[398411756,1765619438959,-190.08791208,0.00017565,2]
[398411757,1765619438970,-341.56853742,0.00018011,2]
[398411758,1765619438980,-500.0,0.00018524,2]
[398411759,1765619438990,-373.04161347,0.00019542,2]
[398411760,1765619439001,-586.581516,0.00020187,2]
[398411761,1765619439012,-215.28503664,0.00020252,2]
[398411762,1765619439021,-500.0,0.00020375,2]
[398411763,1765619439031,-247.72174124,0.00020518,2]
[398411764,1765619439042,-185.19108046,0.00020518,2]
[398411765,1765619439052,-186.04044774,0.00020741,2]
[398411766,1765619439062,-988.87191592,0.00020766,2]
[398411767,1765619439072,-341.56853742,0.00022903,2]
[398411768,1765619439083,-159.22180346,0.00023492,30]
[398411769,1765619439093,-373.04161347,0.00024077,2]
[398411770,1765619439103,-186.04044774,0.00024162,2]
[398411771,1765619439114,-215.28503664,0.00024893,2]
[398411772,1765619439124,-232.14118628,0.00025193,2]
[398411773,1765619439135,-292.08374353,0.00025826,2]
[398411774,1765619439146,-2045.27,0.00026,2]
[398411775,1765619439156,-586.581516,0.00026676,2]
[398411776,1765619439167,-173.19836749,0.00027277,2]
[398411777,1765619439178,-173.19836747,0.00027284,2]
[398411778,1765619439188,-173.19836747,0.0002729,2]
[398411779,1765619439199,-6364.70944215,0.00027297,2]
[398411780,1765619439210,-173.19836747,0.00027297,2]
[398411781,1765619439220,-370.94,0.000273,14]
[398411782,1765619439230,-8930.59,0.000273,2]
[398411783,1765619439241,-156.38,0.000273,7]
[398411784,1765619439250,-5996.42007645,0.00027387,10]
[398411785,1765619439264,-2044.97081546,0.00027387,10]
[398411961,1765619441563,-3e-08,0.00027387,10]
[398411964,1765619441578,-28977.64940249,0.00027387,10]
[398412126,1765619443137,-560.0,0.00027387,10]
[398412143,1765619443294,-21072.3654202,0.00027387,10]
[398412172,1765619446006,-4101.2795482,0.00027387,10]
[398412177,1765619577406,150.0,6.968e-05,2]
[398412178,1765619577831,150.0,7.3e-05,2]
[398412179,1765619578243,150.0,7.632e-05,2]
[398412180,1765619578662,150.0,7.964e-05,2]
[398412181,1765619579055,150.0,8.296e-05,2]
[398412237,1765619709817,150.0,7.201e-05,2]
[398412334,1765620392115,-170.9260711,9.277e-05,2]
[398412335,1765620392136,-142.79439437,9.277e-05,2]
[398412337,1765620439106,-286.84122963,9.277e-05,2]
[398412339,1765620440097,-70.364376,9.277e-05,2]
[398412340,1765620440123,-550.0,9.277e-05,2]
[398412341,1765620440145,-150.0,9.284e-05,2]
[398412342,1765620440167,-260.57777125,0.00010676,2]
[398412343,1765620440189,-112.60554231,0.00011284,2]
[398412405,1765620632290,-160.39445769,0.00011284,2]
[398412407,1765620632300,-172.3477318,0.00011968,2]
[398412409,1765620632310,-260.57777125,0.00015378,2]
[398412412,1765620632320,-171.26792325,0.00018885,2]
[398412414,1765620632330,-62.27706137,0.0002008,2]
[398412418,1765620632358,-198.30070988,0.0002008,2]
[398412420,1765620632368,-156.20800966,0.0002193,5]
[398412422,1765620632378,-1000.0,0.00022432,30]
[398412424,1765620632388,-66.31509115,0.00022573,2]
[398412433,1765620638341,-567.26965904,0.00022573,2]
[398412434,1765620638352,-216.53915731,0.00022573,2]
[398412435,1765620638362,-154.24704626,0.00022609,5]
[398412436,1765620638371,-154.24704626,0.00023308,5]
[398412437,1765620638381,-154.24704626,0.00024034,5]
[398412438,1765620638390,-154.24704626,0.00024772,5]
[398412439,1765620638400,-260.57777125,0.00024782,2]
[398412440,1765620638409,-2773.56790519,0.00025527,2]
[398412441,1765620638419,-399.0,0.00025527,2]
[398412442,1765620638428,-154.24704626,0.00025538,5]
[398412443,1765620638437,-443.68371391,0.00025542,2]
[398412444,1765620638446,-850.1239075,0.00025543,2]
[398412445,1765620638456,-295.68516986,0.00025638,2]
[398412492,1765620640480,-904.31483014,0.00025638,2]
[398412494,1765620640490,-227.3227883,0.00025639,2]
[398412503,1765620640568,-72.6772117,0.00025639,2]
[398412505,1765620640579,-300.0,0.00025639,2]
[398412507,1765620640588,-300.0,0.00025639,2]
[398412508,1765620640597,-199.02513507,0.00025639,2]
[398412518,1765620640693,-100.97486493,0.00025639,2]
[398412520,1765620640703,-799.02513507,0.0002564,2]
[398412802,1765620643402,-400.97486493,0.0002564,2]
[398412804,1765620643411,-300.0,0.0002564,2]
[398412806,1765620643420,-1007.57307494,0.00025656,2]
[398412808,1765620643430,-154.24704626,0.00026328,5]
[398412810,1765620643439,-154.24704626,0.00027142,5]
[398412812,1765620643449,-500.0,0.00027176,2]
[398412814,1765620643458,-500.0,0.00027176,2]
[398412816,1765620643469,-500.0,0.00027176,2]
[398412818,1765620643478,-500.0,0.00027176,2]
[398412820,1765620643487,-373.96299891,0.00027176,2]
[398412822,1765620643496,-678.25817906,0.00027177,10]
[398412824,1765620643509,-3965.18829825,0.00027177,10]
[398412828,1765620643532,-4635.43008,0.00027177,10]
[398412830,1765620643543,-7728.459,0.00027177,10]
[398412922,1765620646388,-31.87124774,0.00027167,10]
[398412956,1765621635130,-167.75186709,0.0001097,2]
[398412957,1765621635150,-504.89164261,0.00019291,2]
[398412958,1765621635171,-167.75186709,0.0002041,2]
[398412959,1765621635190,-154.24704625,0.00021931,5]
[398412960,1765621635210,-51.17177829,0.00022609,5]
[398412961,1765621645077,-103.07526797,0.00022609,5]
[398412962,1765621645096,-154.24704625,0.00023308,5]
[398412963,1765621645120,-127.00868957,0.00025459,2]
[398412964,1765621725180,160.23,7.2e-05,2]
[398412965,1765621738985,-5343.38,0.00014,7]
[398412966,1765621741965,-10000.01,0.00014,7]
[398412967,1765621744953,-300.0,0.00013999,2]
[398412968,1765621744980,-2937.35995847,0.00014,7]
[398412969,1765621761117,-150.0,0.00010569,2]
[398412970,1765621761140,-76.58983161,0.00011469,2]
[398413002,1765621832373,-150.0,0.00011334,2]
[398413003,1765621832383,-81.5941616,0.00011469,2]
[398413004,1765621832392,-581.0,0.00011469,2]
[398413006,1765621832402,-150.0,0.00012365,2]
[398413007,1765621832411,-150.0,0.00013452,2]
[398413008,1765621832420,-150.0,0.00014413,2]
[398413009,1765621832429,-150.0,0.00015374,2]
[398413010,1765621832439,-1187.4058384,0.00025459,2]
[398413011,1765621832452,-385.83328703,0.00025459,2]
[398413012,1765621832461,-161.96581936,0.00026927,2]
[398413013,1765621832470,-1200.0,0.00026997,2]
[398413014,1765621832481,-1002.20089361,0.00026998,2]
[398413113,1765621843511,-197.79910639,0.00026998,2]
[398413114,1765621843522,-300.0,0.00026998,2]
[398413115,1765621843533,-300.0,0.00026998,2]
[398413116,1765621843544,-500.0,0.00027,5]
[398413117,1765621843554,-10000.0,0.00027,4]
[398413118,1765621843564,-500.0,0.00027016,3]
[398413119,1765621843574,-1113.0,0.00027016,3]
[398413120,1765621843584,-500.0,0.00027016,3]
[398413121,1765621843594,-500.0,0.00027016,3]
[398413122,1765621843603,-1464.18,0.00027016,3]
[398413123,1765621843613,-500.0,0.00027016,3]
[398413124,1765621843622,-500.0,0.00027016,3]
[398413125,1765621843632,-500.0,0.00027016,2]
[398413126,1765621843642,-630.14179116,0.00027016,2]
[398413127,1765621843651,-368.80270727,0.00027016,2]
[398413128,1765621843660,-166.07639516,0.00027026,3]
[398413909,1765622488630,163.04450801,0.00011469,2]
[398413910,1765622522275,150.0,9.604e-05,2]
[398413911,1765622522704,150.0,0.00010477,2]
[398414280,1765622912142,150.0,8.928e-05,2]
[398414281,1765622912533,150.0,9.74e-05,2]
[398414282,1765622976446,150.0,9.159e-05,2]
[398414283,1765622976925,150.0,9.992e-05,2]
[398414284,1765622977252,150.0,0.00010825,2]
[398414328,1765623031679,-498.594288,0.00013699,2]
[398414329,1765623031689,-222.80860642,0.00015068,2]
[398414330,1765623031699,-200.0,0.00019178,30]
[398414331,1765623031709,-498.594288,0.00020187,2]
[398414332,1765623031719,-399.86457573,0.00024,2]
[398414333,1765623031730,-245.72116639,0.00024,2]
[398414334,1765623031739,-311.53883361,0.00024261,2]
[398414335,1765623031753,-74.04418569,0.00024261,2]
[398414336,1765623031762,-391.55846782,0.00024261,2]
[398414337,1765623031773,-2382.00943737,0.00024261,2]
[398414338,1765623031783,-222.0,0.00024261,2]
[398414339,1765623031792,-295.12236451,0.00024261,2]
[398414340,1765623031801,-400.0,0.00024261,2]
[398414341,1765623031811,-500.0,0.00024261,2]
[398414342,1765623031820,-1000.0,0.00024607,30]
[398414344,1765623031829,-317.7293099,0.00024691,2]
[398414346,1765623031838,-222.0,0.00024809,2]
[398414348,1765623031847,-400.0,0.00024809,2]
[398414349,1765623031856,-250.0,0.00025,30]
[398414351,1765623031865,-317.0,0.00025,30]
[398414353,1765623031874,-221.06900278,0.00025357,2]
[398414369,1765623037679,-500.0,0.00024261,2]
[398414370,1765623037689,-253.39905116,0.00024261,2]
[398414371,1765623037699,-574.12855637,0.00024261,2]
[398414372,1765623037708,-595.37131296,0.00024809,2]
[398414373,1765623037718,-0.93099722,0.00025357,2]
[398414374,1765623037727,-375.02225674,0.00025357,2]
[398414375,1765623037736,-416.80185763,0.00025766,2]
[398414376,1765623037746,-222.0,0.00025905,2]
[398414377,1765623037755,-232.0,0.00025999,2]
[398414378,1765623037764,-116.86529834,0.00025999,2]
[398414379,1765623037775,-183.13470166,0.00025999,2]
[398414380,1765623037784,-305.44066255,0.00025999,2]
[398414381,1765623037799,-894.55933745,0.00025999,2]
[398414382,1765623037808,-3000.0,0.00026,4]
[398414383,1765623037817,-56.86583325,0.00026041,2]
[398414384,1765623037829,-110.99683535,0.00026041,2]
[398414385,1765623037838,-222.0,0.00026453,2]
[398414386,1765623037847,-106.00250494,0.00026574,2]
[398414387,1765623037858,-193.99749506,0.00026574,2]
[398414388,1765623037867,-270.5314281,0.00026676,2]
[398414389,1765623037879,-228.0628599,0.00026676,2]
[398414390,1765623037888,-71.9371401,0.00026721,3]
[398414487,1765623043172,-150.0,8.962e-05,2]
[398414489,1765623043182,-150.0,9.776e-05,2]
[398414491,1765623043191,-150.0,0.00010591,2]
[398414493,1765623043200,-150.0,0.00011406,2]
[398414495,1765623043210,-428.0628599,0.00026721,3]
[398414497,1765623043220,-500.0,0.00026858,3]
[398414499,1765623043229,-11940.89469203,0.00026886,10]
[398414505,1765623043278,-596.16442264,0.00026886,10]
[398414508,1765623043289,-53648.14088533,0.00026886,10]
[398414510,1765623043299,-500.0,0.00026894,3]
[398414512,1765623043308,-1909.07,0.00026894,3]
[398414514,1765623043318,-500.0,0.00026894,3]
[398414516,1765623043328,-500.0,0.00026894,3]
[398414518,1765623043337,-820.65,0.00026894,3]
[398414520,1765623043347,-500.0,0.00026894,3]
[398414522,1765623043356,-536.09,0.00026894,3]
[398414524,1765623043365,-500.0,0.00026894,3]
[398414526,1765623043374,-500.0,0.00026894,3]
[398414528,1765623043384,-1596.02,0.00026894,3]
[398414530,1765623043393,-815.25,0.00026894,3]
[398414532,1765623043402,-1596.88,0.00026894,3]
[398414534,1765623043412,-270.12923127,0.00026894,3]
[398414536,1765623043421,-500.0,0.00026894,3]
[398414538,1765623043430,-1304.39,0.00026894,3]
[398414540,1765623043439,-375.85019173,0.00026894,3]
[398414542,1765623043448,-1648.24,0.00026894,3]
[398414544,1765623043458,-504.66,0.00026894,3]
[398414546,1765623043467,-589.61799633,0.00026894,3]
[398414548,1765623043476,-580.08,0.00026894,2]
[398414550,1765623043485,-782.66,0.00026894,3]
[398414552,1765623043494,-849.72,0.00026894,3]
[398414554,1765623043504,-199.93,0.00026894,2]
[398414556,1765623043513,-300.00000003,0.00026894,2]
[398414558,1765623043522,-1384.86,0.00026894,3]
[398414560,1765623043531,-1066.63,0.00026894,3]
[398414562,1765623043541,-1669.32,0.00026894,3]
[398414564,1765623043550,-369.66857767,0.00026895,3]
[398414566,1765623043560,-500.0,0.00026895,3]
[398414568,1765623043568,-500.0,0.00026895,3]
[398414569,1765623043578,-679.7,0.00026895,3]
[398414570,1765623043587,-500.0,0.00026895,3]
[398414572,1765623043596,-500.0,0.00026895,3]
[398414573,1765623043605,-500.0,0.00026895,3]
[398414574,1765623043615,-500.0,0.00026895,3]
[398414575,1765623043625,-500.0,0.00026895,3]
[398414576,1765623043634,-787.59,0.00026895,3]
[398414577,1765623043643,-500.0,0.00026895,3]
[398414578,1765623043652,-504.02,0.00026895,3]
[398414579,1765623043662,-500.0,0.00026895,3]
[398414580,1765623043671,-500.0,0.00026895,3]
[398414581,1765623043680,-500.0,0.00026895,3]
[398414582,1765623043690,-500.0,0.00026895,3]
[398414583,1765623043699,-593.38521177,0.00026895,3]
[398414584,1765623043708,-500.0,0.00026895,3]
[398414585,1765623043717,-747.99,0.00026895,3]
[398414586,1765623043727,-500.0,0.00026895,3]
[398414587,1765623043736,-362.65598772,0.00026895,3]
[398414588,1765623043746,-500.0,0.00026895,3]
[398414589,1765623043755,-500.0,0.00026895,3]
[398414590,1765623043765,-500.0,0.00026895,3]
[398414591,1765623043774,-294.97501469,0.00026895,2]
[398414592,1765623043783,-500.0,0.00026895,3]
[398414593,1765623043793,-500.0,0.00026895,3]
[398414594,1765623043803,-500.0,0.00026895,3]
[398414595,1765623043813,-500.0,0.00026895,3]
[398414596,1765623043822,-165.90225488,0.00026895,3]
[398414597,1765623043832,-500.0,0.00026895,3]
[398414598,1765623043842,-500.0,0.00026895,3]
[398414599,1765623043851,-500.0,0.00026895,3]
[398414600,1765623043861,-500.0,0.00026895,3]
[398414601,1765623043872,-500.0,0.00026895,3]
[398414602,1765623043882,-500.0,0.00026895,3]
[398414603,1765623043891,-500.0,0.00026895,3]
[398414604,1765623043901,-448.79880776,0.00026895,3]
[398414605,1765623043914,-51.20119224,0.00026895,3]
[398414606,1765623043923,-500.0,0.00026895,3]
[398414607,1765623043933,-500.0,0.00026895,3]
[398414608,1765623043943,-500.0,0.00026895,3]
[398414609,1765623043952,-500.0,0.00026895,3]
[398414610,1765623043961,-500.0,0.00026895,3]
[398414611,1765623043978,-500.0,0.00026895,3]
[398414612,1765623043988,-565.39,0.00026895,3]
[398414613,1765623043997,-500.0,0.00026895,3]
[398414614,1765623044008,-500.0,0.00026895,3]
[398414615,1765623044017,-459.39016153,0.00026895,3]
[398414616,1765623044027,-500.0,0.00026895,3]
[398414617,1765623044037,-371.7891797,0.00026895,3]
[398414618,1765623044052,-128.2108203,0.00026895,3]
[398414619,1765623044062,-500.0,0.00026895,3]
[398414620,1765623044072,-864.77,0.00026895,3]
[398414621,1765623044081,-500.0,0.00026895,3]
[398414622,1765623044091,-753.46,0.00026895,3]
[398414623,1765623044101,-500.0,0.00026895,3]
[398414624,1765623044110,-500.0,0.00026895,3]
[398414625,1765623044120,-500.0,0.00026895,3]
[398414626,1765623044129,-500.0,0.00026895,3]
[398414627,1765623044138,-500.0,0.00026895,3]
[398414628,1765623044148,-500.0,0.00026895,3]
[398414629,1765623044158,-500.0,0.00026895,3]
[398414630,1765623044167,-500.0,0.00026895,3]
[398414631,1765623044177,-685.41,0.00026895,3]
[398414632,1765623044187,-500.0,0.00026895,3]
[398414633,1765623044196,-80.2117397,0.00026895,3]
[398414657,1765623045634,-1215.86785834,0.00026885,10]
[398414659,1765623045688,-2281.28905335,0.00026885,10]
[398414665,1765624012142,-260.48056407,0.00020971,2]
[398414666,1765624012165,-53.2399014,0.00021085,2]
[398414667,1765624052088,-110.13069563,0.00021085,2]
[398414668,1765624052107,-150.0,0.0002138,2]